[Event "Titled Tuesday Blitz May 23 Late 2023"]
[White "Dimitrov, Atanas"]
[Black "Wadsworth, Matthew J"]
[WhiteFideId "2901315"]
[BlackFideId "415804"]
[WhiteElo "2710"]
[BlackElo "2347"]
[Result "1-0"]
[Round "08"]
[TimeControl "180+2"]
[Date "2023.05.23"]
[WhiteClock "0:00:02"]
[BlackClock "0:00:00"]

1. Nf3 {[%clk 0:03:00]}  d5 {[%clk 0:02:53]} 2. e3 {[%clk 0:03:00]}  Nf6 {[%clk 0:02:53]} 3. c4 {[%clk 0:02:58]}  c6 {[%clk 0:02:53]} 4. Nc3 {[%clk 0:02:58]}  a6 {[%clk 0:02:52]} 5. b3 {[%clk 0:02:58]}  g6 {[%clk 0:02:52]} 6. Bb2 {[%clk 0:02:59]}  Bg7 {[%clk 0:02:53]} 7. Be2 {[%clk 0:02:59]}  O-O {[%clk 0:02:53]} 8. O-O {[%clk 0:03:00]}  b5 {[%clk 0:02:52]} 9. Rc1 {[%clk 0:02:56]}  Nbd7 {[%clk 0:02:49]} 10. d4 {[%clk 0:02:53]}  Bb7 {[%clk 0:02:48]} 11. Nd2 {[%clk 0:02:50]}  Re8 {[%clk 0:02:46]} 12. Qc2 {[%clk 0:02:49]}  dxc4 {[%clk 0:02:41]} 13. bxc4 {[%clk 0:02:49]}  b4 {[%clk 0:02:41]} 14. Na4 {[%clk 0:02:43]}  e5 {[%clk 0:02:33]} 15. dxe5 {[%clk 0:02:35]}  Nxe5 {[%clk 0:02:34]} 16. Rfd1 {[%clk 0:02:31]}  Qc7 {[%clk 0:02:33]} 17. Nc5 {[%clk 0:02:24]}  Neg4 {[%clk 0:02:30]} 18. Nf3 {[%clk 0:02:21]}  Bc8 {[%clk 0:02:24]} 19. h3 {[%clk 0:02:20]}  Bf5 {[%clk 0:02:16]} 20. Qa4 {[%clk 0:02:09]}  Nxf2 {[%clk 0:02:16]} 21. Kxf2 {[%clk 0:02:06]}  Ne4+ {[%clk 0:02:14]} 22. Nxe4 {[%clk 0:02:05]}  Bxb2 {[%clk 0:02:14]} 23. Nd6 {[%clk 0:01:53]}  Bxc1 {[%clk 0:01:48]} 24. Nxe8 {[%clk 0:01:44]}  Bxe3+ {[%clk 0:01:34]} 25. Kxe3 {[%clk 0:01:43]}  Rxe8+ {[%clk 0:01:30]} 26. Kf2 {[%clk 0:01:39]}  Qf4 {[%clk 0:01:20]} 27. Qb3 {[%clk 0:01:33]}  c5 {[%clk 0:01:15]} 28. Rd5 {[%clk 0:01:21]}  a5 {[%clk 0:01:14]} 29. a4 {[%clk 0:01:11]}  bxa3 {[%clk 0:01:09]} 30. Qxa3 {[%clk 0:01:10]}  Rxe2+ {[%clk 0:01:03]} 31. Kxe2 {[%clk 0:01:08]}  Qxc4+ {[%clk 0:01:03]} 32. Rd3 {[%clk 0:01:08]}  a4 {[%clk 0:00:59]} 33. Nd2 {[%clk 0:01:04]}  Bxd3+ {[%clk 0:00:53]} 34. Qxd3 {[%clk 0:01:05]}  Qb4 {[%clk 0:00:26]} 35. Nc4 {[%clk 0:01:01]}  h5 {[%clk 0:00:20]} 36. Kd1 {[%clk 0:00:50]}  Kg7 {[%clk 0:00:19]} 37. Kc2 {[%clk 0:00:50]}  Qe1 {[%clk 0:00:16]} 38. Nd2 {[%clk 0:00:42]}  Qf2 {[%clk 0:00:15]} 39. Qc3+ {[%clk 0:00:33]}  Kh7 {[%clk 0:00:14]} 40. Qc4 {[%clk 0:00:31]}  a3 {[%clk 0:00:13]} 41. g4 {[%clk 0:00:28]}  h4 {[%clk 0:00:06]} 42. Qb3 {[%clk 0:00:18]}  Qg3 {[%clk 0:00:03]} 43. Qxf7+ {[%clk 0:00:18]}  Kh6 {[%clk 0:00:03]} 44. Qf8+ {[%clk 0:00:17]}  Kh7 {[%clk 0:00:03]} 45. Qe7+ {[%clk 0:00:05]}  Kh6 {[%clk 0:00:03]} 46. Qxc5 {[%clk 0:00:04]}  Qxh3 {[%clk 0:00:03]} 47. g5+ {[%clk 0:00:03]}  Kh7 {[%clk 0:00:02]} 48. Qe7+ {[%clk 0:00:03]}  Kh8 {[%clk 0:00:02]} 49. Ne4 {[%clk 0:00:02]}  Qf5 {[%clk 0:00:01]} 50. Kb3 {[%clk 0:00:02]}  h3 {[%clk 0:00:01]} 51. Kxa3 {[%clk 0:00:02]}  Qa5+ {[%clk 0:00:01]} 52. Kb3 {[%clk 0:00:02]}  Qb5+ {[%clk 0:00:01]} 53. Kc3 {[%clk 0:00:03]}  Qf5 {[%clk 0:00:01]} 54. Nf6 {[%clk 0:00:02]}  Qf3+ {[%clk 0:00:01]} 55. Kd4 {[%clk 0:00:02]}  Qf4+ {[%clk 0:00:01]} 56. Kc3 {[%clk 0:00:02]}  Qg3+ {[%clk 0:00:01]} 57. Kb4 {[%clk 0:00:02]}  Qf4+ {[%clk 0:00:01]} 58. Kb5 {[%clk 0:00:01]}  Qxg5+ {[%clk 0:00:01]} 59. Kc6 {[%clk 0:00:02]}  Qc1+ {[%clk 0:00:01]} 60. Kd7 {[%clk 0:00:02]}  Qd2+ {[%clk 0:00:01]} 61. Ke8 {[%clk 0:00:03]}  Qh6 {[%clk 0:00:02]} 62. Qf7 {[%clk 0:00:02]}  Qg7 {[%clk 0:00:02]} 63. Qe6 {[%clk 0:00:02]}  h2 {[%clk 0:00:00]} 64. Qh3+ {[%clk 0:00:02]} 1-0


[Site "https://www.chess.com"]

[Event "Titled Tuesday Blitz May 23 Late 2023"]
[White "Baghdasaryan, Vahe"]
[Black "Timmermans, Mark"]
[WhiteFideId "13303139"]
[BlackFideId "1026399"]
[WhiteElo "2216"]
[BlackElo "2460"]
[Result "1-0"]
[Round "08"]
[TimeControl "180+2"]
[Date "2023.05.23"]
[WhiteClock "0:00:04"]
[BlackClock "0:00:00"]

1. e4 {[%clk 0:03:00]}  e5 {[%clk 0:02:59]} 2. Nf3 {[%clk 0:03:00]}  Nc6 {[%clk 0:02:59]} 3. Bc4 {[%clk 0:02:58]}  Nf6 {[%clk 0:02:59]} 4. d3 {[%clk 0:02:52]}  Be7 {[%clk 0:02:56]} 5. O-O {[%clk 0:02:50]}  O-O {[%clk 0:02:53]} 6. c3 {[%clk 0:02:50]}  d5 {[%clk 0:02:51]} 7. exd5 {[%clk 0:02:48]}  Nxd5 {[%clk 0:02:52]} 8. Re1 {[%clk 0:02:48]}  Bg4 {[%clk 0:02:51]} 9. Nbd2 {[%clk 0:02:47]}  Nf4 {[%clk 0:02:51]} 10. Nf1 {[%clk 0:02:38]}  Bd6 {[%clk 0:02:47]} 11. h3 {[%clk 0:02:12]}  Bh5 {[%clk 0:02:46]} 12. Ng3 {[%clk 0:02:06]}  Bg6 {[%clk 0:02:46]} 13. Ne4 {[%clk 0:01:56]}  Kh8 {[%clk 0:02:37]} 14. d4 {[%clk 0:01:44]}  Bxe4 {[%clk 0:02:29]} 15. Rxe4 {[%clk 0:01:43]}  f5 {[%clk 0:02:29]} 16. Re1 {[%clk 0:01:35]}  e4 {[%clk 0:02:29]} 17. Nh2 {[%clk 0:00:53]}  Qg5 {[%clk 0:02:24]} 18. g3 {[%clk 0:00:47]}  Nxh3+ {[%clk 0:02:17]} 19. Kg2 {[%clk 0:00:39]}  Nf4+ {[%clk 0:00:56]} 20. Kh1 {[%clk 0:00:37]}  Rf6 {[%clk 0:00:57]} 21. Bxf4 {[%clk 0:00:30]}  Bxf4 {[%clk 0:00:58]} 22. gxf4 {[%clk 0:00:30]}  Qxf4 {[%clk 0:00:59]} 23. Qe2 {[%clk 0:00:12]}  Rh6 {[%clk 0:00:52]} 24. f3 {[%clk 0:00:12]}  Re8 {[%clk 0:00:38]} 25. fxe4 {[%clk 0:00:10]}  Rxe4 {[%clk 0:00:31]} 26. Qg2 {[%clk 0:00:09]}  Rg6 {[%clk 0:00:24]} 27. Rxe4 {[%clk 0:00:08]}  fxe4 {[%clk 0:00:25]} 28. Rf1 {[%clk 0:00:07]}  Qd6 {[%clk 0:00:16]} 29. Qxe4 {[%clk 0:00:06]}  Qd8 {[%clk 0:00:13]} 30. Bd3 {[%clk 0:00:06]}  Rh6 {[%clk 0:00:11]} 31. Qf5 {[%clk 0:00:05]}  Qg8 {[%clk 0:00:07]} 32. Qf8 {[%clk 0:00:05]}  Nd8 {[%clk 0:00:01]} 33. Bc4 {[%clk 0:00:05]}  Ne6 {[%clk 0:00:01]} 34. Bxe6 {[%clk 0:00:04]}  Rxe6 {[%clk 0:00:01]} 35. Ng4 {[%clk 0:00:05]}  Rg6 {[%clk 0:00:02]} 36. Qe7 {[%clk 0:00:04]}  Rxg4 {[%clk 0:00:01]} 37. Rf8 {[%clk 0:00:03]}  h6 {[%clk 0:00:02]} 38. Rxg8+ {[%clk 0:00:04]}  Kxg8 {[%clk 0:00:00]} 39. Qe6+ {[%clk 0:00:04]} 1-0


[Site "https://www.chess.com"]

[Event "Titled Tuesday Blitz May 23 Late 2023"]
[White "Machidon, Cristi"]
[Black "Sun, Rick"]
[WhiteFideId "13904590"]
[BlackFideId "30909481"]
[WhiteElo "2355"]
[BlackElo "2169"]
[Result "1-0"]
[Round "08"]
[TimeControl "180+2"]
[Date "2023.05.23"]
[WhiteClock "0:00:53"]
[BlackClock "0:00:00"]

1. d4 {[%clk 0:03:00]}  d6 {[%clk 0:03:00]} 2. e4 {[%clk 0:02:59]}  Nf6 {[%clk 0:03:01]} 3. Nc3 {[%clk 0:02:59]}  Nbd7 {[%clk 0:03:01]} 4. Nf3 {[%clk 0:02:59]}  e5 {[%clk 0:03:01]} 5. Be3 {[%clk 0:02:58]}  Be7 {[%clk 0:03:01]} 6. h3 {[%clk 0:02:57]}  c6 {[%clk 0:03:01]} 7. a4 {[%clk 0:02:56]}  Qc7 {[%clk 0:03:01]} 8. Be2 {[%clk 0:02:52]}  O-O {[%clk 0:03:00]} 9. O-O {[%clk 0:02:52]}  Re8 {[%clk 0:03:00]} 10. Re1 {[%clk 0:02:50]}  Nf8 {[%clk 0:03:01]} 11. a5 {[%clk 0:02:44]}  Ng6 {[%clk 0:03:00]} 12. dxe5 {[%clk 0:02:40]}  dxe5 {[%clk 0:03:00]} 13. Bc4 {[%clk 0:02:41]}  h6 {[%clk 0:02:57]} 14. Nd2 {[%clk 0:02:33]}  Bb4 {[%clk 0:02:49]} 15. Qf3 {[%clk 0:02:27]}  Kh7 {[%clk 0:02:19]} 16. a6 {[%clk 0:02:01]}  b5 {[%clk 0:02:13]} 17. Bb3 {[%clk 0:02:00]}  Be6 {[%clk 0:02:09]} 18. Bxe6 {[%clk 0:01:53]}  Rxe6 {[%clk 0:02:10]} 19. Nb3 {[%clk 0:01:53]}  c5 {[%clk 0:01:30]} 20. Nxb5 {[%clk 0:01:49]}  Qc6 {[%clk 0:01:30]} 21. Nc3 {[%clk 0:01:47]}  Bxc3 {[%clk 0:01:26]} 22. bxc3 {[%clk 0:01:48]}  Qxe4 {[%clk 0:01:26]} 23. Qxe4 {[%clk 0:01:41]}  Nxe4 {[%clk 0:01:27]} 24. Nxc5 {[%clk 0:01:40]}  Nxc5 {[%clk 0:01:27]} 25. Bxc5 {[%clk 0:01:41]}  Rc6 {[%clk 0:01:21]} 26. Ra5 {[%clk 0:01:40]}  f6 {[%clk 0:01:17]} 27. Rb1 {[%clk 0:01:40]}  Nf4 {[%clk 0:01:13]} 28. Rb7 {[%clk 0:01:30]}  Ne6 {[%clk 0:00:40]} 29. Bxa7 {[%clk 0:01:29]}  Rxc3 {[%clk 0:00:30]} 30. Be3 {[%clk 0:01:24]}  Nd8 {[%clk 0:00:21]} 31. Rb6 {[%clk 0:01:00]}  Rxc2 {[%clk 0:00:12]} 32. a7 {[%clk 0:00:59]}  Nc6 {[%clk 0:00:10]} 33. Raa6 {[%clk 0:00:56]}  Nxa7 {[%clk 0:00:09]} 34. Rb7 {[%clk 0:00:55]}  Rg8 {[%clk 0:00:01]} 35. Raxa7 {[%clk 0:00:54]}  Kg6 {[%clk 0:00:00]} 36. g4 {[%clk 0:00:53]} 1-0


[Site "https://www.chess.com"]

[Event "Titled Tuesday Blitz May 23 Late 2023"]
[White "Hambleton, Aman"]
[Black "Safin, Robert"]
[WhiteFideId "2606577"]
[BlackFideId "34189120"]
[WhiteElo "2511"]
[BlackElo "2295"]
[Result "0-1"]
[Round "08"]
[TimeControl "180+2"]
[Date "2023.05.23"]
[WhiteClock "0:00:00"]
[BlackClock "0:01:05"]

1. c4 {[%clk 0:03:00]}  e6 {[%clk 0:02:58]} 2. d4 {[%clk 0:02:59]}  Nf6 {[%clk 0:02:55]} 3. Nc3 {[%clk 0:02:59]}  Bb4 {[%clk 0:02:54]} 4. Qc2 {[%clk 0:03:00]}  d5 {[%clk 0:02:54]} 5. cxd5 {[%clk 0:02:59]}  Qxd5 {[%clk 0:02:54]} 6. e3 {[%clk 0:02:58]}  c5 {[%clk 0:02:53]} 7. Bd2 {[%clk 0:02:58]}  Bxc3 {[%clk 0:02:51]} 8. bxc3 {[%clk 0:02:54]}  b6 {[%clk 0:02:50]} 9. Nf3 {[%clk 0:02:52]}  O-O {[%clk 0:02:48]} 10. Bd3 {[%clk 0:02:47]}  Ba6 {[%clk 0:02:46]} 11. c4 {[%clk 0:02:26]}  Qh5 {[%clk 0:02:42]} 12. h3 {[%clk 0:01:45]}  Nbd7 {[%clk 0:02:37]} 13. O-O-O {[%clk 0:00:52]}  Bb7 {[%clk 0:02:14]} 14. g4 {[%clk 0:00:43]}  Qh6 {[%clk 0:02:14]} 15. e4 {[%clk 0:00:37]}  g5 {[%clk 0:02:06]} 16. h4 {[%clk 0:00:23]}  Qg7 {[%clk 0:01:59]} 17. hxg5 {[%clk 0:00:19]}  Nxg4 {[%clk 0:01:59]} 18. e5 {[%clk 0:00:09]}  Rfd8 {[%clk 0:01:58]} 19. Rxh7 {[%clk 0:00:08]}  Bxf3 {[%clk 0:01:56]} 20. Rxg7+ {[%clk 0:00:08]}  Kxg7 {[%clk 0:01:57]} 21. Rg1 {[%clk 0:00:06]}  cxd4 {[%clk 0:01:55]} 22. Rg3 {[%clk 0:00:04]}  Ndxe5 {[%clk 0:01:54]} 23. Bf4 {[%clk 0:00:04]}  Rac8 {[%clk 0:01:50]} 24. Kb2 {[%clk 0:00:03]}  Rc5 {[%clk 0:01:46]} 25. Rh3 {[%clk 0:00:03]}  Rdc8 {[%clk 0:01:37]} 26. Rxf3 {[%clk 0:00:03]}  Nxf3 {[%clk 0:01:36]} 27. Qe2 {[%clk 0:00:04]}  Nge5 {[%clk 0:01:28]} 28. Be4 {[%clk 0:00:02]}  d3 {[%clk 0:01:16]} 29. Qd1 {[%clk 0:00:01]}  Rxc4 {[%clk 0:01:12]} 30. Bxf3 {[%clk 0:00:01]}  Rxf4 {[%clk 0:01:12]} 31. Bh5 {[%clk 0:00:01]}  Rc2+ {[%clk 0:01:07]} 32. Kb3 {[%clk 0:00:00]}  a5 {[%clk 0:01:05]} 0-1


[Site "https://www.chess.com"]

[Event "Titled Tuesday Blitz May 23 Late 2023"]
[White "OPQRC"]
[Black "Panesar Vedant"]
[BlackFideId "35033018"]
[WhiteElo "2549"]
[BlackElo "2347"]
[Result "0-1"]
[Round "08"]
[TimeControl "180+2"]
[Date "2023.05.23"]
[WhiteClock "0:01:34"]
[BlackClock "0:02:05"]

1. e4 {[%clk 0:02:53]}  e5 {[%clk 0:02:59]} 2. Nf3 {[%clk 0:02:52]}  Nc6 {[%clk 0:02:59]} 3. Bc4 {[%clk 0:02:53]}  Nf6 {[%clk 0:02:59]} 4. d4 {[%clk 0:02:53]}  exd4 {[%clk 0:02:55]} 5. O-O {[%clk 0:02:52]}  Nxe4 {[%clk 0:02:52]} 6. Re1 {[%clk 0:02:53]}  d5 {[%clk 0:02:52]} 7. Bxd5 {[%clk 0:02:53]}  Qxd5 {[%clk 0:02:53]} 8. Nc3 {[%clk 0:02:53]}  Qa5 {[%clk 0:02:50]} 9. Nxe4 {[%clk 0:02:54]}  Be6 {[%clk 0:02:50]} 10. Neg5 {[%clk 0:02:54]}  O-O-O {[%clk 0:02:50]} 11. Nxe6 {[%clk 0:02:54]}  fxe6 {[%clk 0:02:50]} 12. Rxe6 {[%clk 0:02:54]}  Bd6 {[%clk 0:02:50]} 13. Qe2 {[%clk 0:02:52]}  h6 {[%clk 0:02:40]} 14. Bd2 {[%clk 0:02:40]}  Qf5 {[%clk 0:02:39]} 15. c3 {[%clk 0:02:23]}  d3 {[%clk 0:02:37]} 16. Qe4 {[%clk 0:02:18]}  Qxe4 {[%clk 0:02:36]} 17. Rxe4 {[%clk 0:02:19]}  Rhe8 {[%clk 0:02:37]} 18. Rae1 {[%clk 0:02:18]}  Rxe4 {[%clk 0:02:37]} 19. Rxe4 {[%clk 0:02:19]}  Bc5 {[%clk 0:02:36]} 20. Kf1 {[%clk 0:02:17]}  a5 {[%clk 0:02:33]} 21. Ke1 {[%clk 0:02:14]}  b6 {[%clk 0:02:31]} 22. Be3 {[%clk 0:02:11]}  Bxe3 {[%clk 0:02:14]} 23. Rxe3 {[%clk 0:02:12]}  a4 {[%clk 0:02:14]} 24. Kd2 {[%clk 0:02:02]}  Na5 {[%clk 0:02:15]} 25. Ne5 {[%clk 0:02:02]}  Rd5 {[%clk 0:02:12]} 26. f4 {[%clk 0:01:59]}  Rb5 {[%clk 0:02:06]} 27. Kc1 {[%clk 0:01:49]}  d2+ {[%clk 0:02:05]} 28. Kc2 {[%clk 0:01:39]}  Rxb2+ {[%clk 0:02:06]} 29. Kd1 {[%clk 0:01:35]}  Rxa2 {[%clk 0:02:05]} 30. Rg3 {[%clk 0:01:34]}  Nb3 {[%clk 0:02:05]} 0-1


[Site "https://www.chess.com"]

[Event "Titled Tuesday Blitz May 23 Late 2023"]
[White "Reprintsev, Alexander"]
[Black "Pakleza, Zbigniew"]
[WhiteFideId "14100541"]
[BlackFideId "1119290"]
[WhiteElo "2218"]
[BlackElo "2410"]
[Result "1-0"]
[Round "08"]
[TimeControl "180+2"]
[Date "2023.05.23"]
[WhiteClock "0:00:18"]
[BlackClock "0:00:00"]

1. e4 {[%clk 0:02:54]}  d6 {[%clk 0:03:00]} 2. d4 {[%clk 0:02:54]}  Nf6 {[%clk 0:03:00]} 3. Nc3 {[%clk 0:02:54]}  c6 {[%clk 0:03:01]} 4. Be2 {[%clk 0:02:47]}  Nbd7 {[%clk 0:02:58]} 5. g4 {[%clk 0:02:45]}  b5 {[%clk 0:02:57]} 6. g5 {[%clk 0:02:43]}  Ng8 {[%clk 0:02:56]} 7. f4 {[%clk 0:02:41]}  b4 {[%clk 0:02:49]} 8. Na4 {[%clk 0:02:37]}  e5 {[%clk 0:02:38]} 9. Nf3 {[%clk 0:02:36]}  Qa5 {[%clk 0:02:34]} 10. b3 {[%clk 0:02:33]}  h6 {[%clk 0:02:21]} 11. g6 {[%clk 0:02:32]}  fxg6 {[%clk 0:02:20]} 12. Rg1 {[%clk 0:02:32]}  exf4 {[%clk 0:02:11]} 13. Rxg6 {[%clk 0:02:25]}  Ne7 {[%clk 0:02:09]} 14. Rxd6 {[%clk 0:02:23]}  g5 {[%clk 0:01:34]} 15. Bb2 {[%clk 0:02:13]}  Bg7 {[%clk 0:01:20]} 16. c4 {[%clk 0:01:57]}  g4 {[%clk 0:01:14]} 17. c5 {[%clk 0:01:44]}  gxf3 {[%clk 0:01:05]} 18. Bxf3 {[%clk 0:01:44]}  Kd8 {[%clk 0:00:35]} 19. Qd2 {[%clk 0:01:32]}  Rf8 {[%clk 0:00:34]} 20. O-O-O {[%clk 0:01:32]}  Kc7 {[%clk 0:00:33]} 21. Rg1 {[%clk 0:01:29]}  Bh8 {[%clk 0:00:25]} 22. Rxh6 {[%clk 0:01:29]}  Ba6 {[%clk 0:00:22]} 23. Rh7 {[%clk 0:01:21]}  Rae8 {[%clk 0:00:21]} 24. Bg4 {[%clk 0:01:11]}  Nf6 {[%clk 0:00:19]} 25. Rxh8 {[%clk 0:01:08]}  Rxh8 {[%clk 0:00:12]} 26. Qxf4+ {[%clk 0:01:07]}  Kb7 {[%clk 0:00:13]} 27. Qxf6 {[%clk 0:01:07]}  Qc7 {[%clk 0:00:08]} 28. d5 {[%clk 0:00:46]}  Qxh2 {[%clk 0:00:06]} 29. Rd1 {[%clk 0:00:39]}  Qh6+ {[%clk 0:00:05]} 30. Qxh6 {[%clk 0:00:38]}  Rxh6 {[%clk 0:00:06]} 31. dxc6+ {[%clk 0:00:35]}  Nxc6 {[%clk 0:00:06]} 32. Rd7+ {[%clk 0:00:31]}  Ka8 {[%clk 0:00:06]} 33. e5 {[%clk 0:00:26]}  Bb5 {[%clk 0:00:06]} 34. Bf3 {[%clk 0:00:25]}  Rh3 {[%clk 0:00:06]} 35. Bd5 {[%clk 0:00:22]}  Rh2 {[%clk 0:00:05]} 36. e6 {[%clk 0:00:19]}  Rf8 {[%clk 0:00:04]} 37. Rf7 {[%clk 0:00:18]}  Rg8 {[%clk 0:00:00]} 38. Bg7 {[%clk 0:00:18]} 1-0


[Site "https://www.chess.com"]

[Event "Titled Tuesday Blitz May 23 Late 2023"]
[White "Kisic, Bozidar"]
[Black "Rozman, Levy"]
[WhiteFideId "16500350"]
[BlackFideId "2039877"]
[WhiteElo "2234"]
[BlackElo "2376"]
[Result "0-1"]
[Round "08"]
[TimeControl "180+2"]
[Date "2023.05.23"]
[WhiteClock "0:00:14"]
[BlackClock "0:00:05"]

1. d4 {[%clk 0:02:59]}  g6 {[%clk 0:02:59]} 2. Nc3 {[%clk 0:02:58]}  Bg7 {[%clk 0:02:59]} 3. Bf4 {[%clk 0:02:55]}  d6 {[%clk 0:02:59]} 4. Qd2 {[%clk 0:02:55]}  a6 {[%clk 0:02:59]} 5. h3 {[%clk 0:02:53]}  b5 {[%clk 0:02:57]} 6. a3 {[%clk 0:02:52]}  Bb7 {[%clk 0:02:57]} 7. Nf3 {[%clk 0:02:51]}  Nd7 {[%clk 0:02:57]} 8. e4 {[%clk 0:02:47]}  e6 {[%clk 0:02:57]} 9. Be2 {[%clk 0:02:44]}  Ne7 {[%clk 0:02:56]} 10. h4 {[%clk 0:02:37]}  h6 {[%clk 0:02:55]} 11. O-O-O {[%clk 0:02:31]}  Nf6 {[%clk 0:02:43]} 12. Bd3 {[%clk 0:02:24]}  Ng4 {[%clk 0:02:43]} 13. Nh2 {[%clk 0:02:18]}  Nxh2 {[%clk 0:02:42]} 14. Rxh2 {[%clk 0:02:18]}  Bxd4 {[%clk 0:02:24]} 15. Bxb5+ {[%clk 0:02:15]}  axb5 {[%clk 0:02:24]} 16. Qxd4 {[%clk 0:02:14]}  e5 {[%clk 0:02:24]} 17. Bxe5 {[%clk 0:02:13]}  Nc6 {[%clk 0:02:24]} 18. Qd5 {[%clk 0:02:01]}  Nxe5 {[%clk 0:02:23]} 19. Qxb7 {[%clk 0:01:52]}  Rb8 {[%clk 0:01:39]} 20. Qd5 {[%clk 0:01:47]}  b4 {[%clk 0:01:37]} 21. axb4 {[%clk 0:01:44]}  Rxb4 {[%clk 0:01:34]} 22. Qa5 {[%clk 0:01:28]}  Qb8 {[%clk 0:01:21]} 23. Nd5 {[%clk 0:01:03]}  Rxb2 {[%clk 0:01:02]} 24. Nxc7+ {[%clk 0:01:03]}  Kf8 {[%clk 0:00:53]} 25. Qa8 {[%clk 0:01:03]}  Kg7 {[%clk 0:00:34]} 26. Qxb8 {[%clk 0:00:52]}  Rhxb8 {[%clk 0:00:33]} 27. Kd2 {[%clk 0:00:44]}  Rc8 {[%clk 0:00:27]} 28. Kc1 {[%clk 0:00:35]}  Ra2 {[%clk 0:00:19]} 29. Kb1 {[%clk 0:00:36]}  Ra5 {[%clk 0:00:18]} 30. Nd5 {[%clk 0:00:34]}  Nc4 {[%clk 0:00:08]} 31. c3 {[%clk 0:00:34]}  Rb8+ {[%clk 0:00:05]} 32. Kc2 {[%clk 0:00:35]}  Ra2+ {[%clk 0:00:05]} 33. Kd3 {[%clk 0:00:13]}  Nb2+ {[%clk 0:00:05]} 34. Ke2 {[%clk 0:00:13]}  Nxd1+ {[%clk 0:00:05]} 35. Kxd1 {[%clk 0:00:14]}  Rb1# {[%clk 0:00:05]} 0-1


[Site "https://www.chess.com"]

[Event "Titled Tuesday Blitz May 23 Late 2023"]
[White "Kuznetsov, Felix"]
[Black "Musovic, Armin"]
[WhiteFideId "34147990"]
[BlackFideId "939935"]
[WhiteElo "2281"]
[BlackElo "2322"]
[Result "1-0"]
[Round "08"]
[TimeControl "180+2"]
[Date "2023.05.23"]
[WhiteClock "0:00:07"]
[BlackClock "0:00:10"]

1. f4 {[%clk 0:02:58]}  Nh6 {[%clk 0:02:59]} 2. Nf3 {[%clk 0:02:57]}  g6 {[%clk 0:02:59]} 3. g3 {[%clk 0:02:57]}  d5 {[%clk 0:02:59]} 4. Bg2 {[%clk 0:02:58]}  Bg7 {[%clk 0:03:00]} 5. O-O {[%clk 0:02:58]}  c5 {[%clk 0:03:00]} 6. d3 {[%clk 0:02:59]}  d4 {[%clk 0:03:01]} 7. e4 {[%clk 0:02:59]}  dxe3 {[%clk 0:03:01]} 8. c3 {[%clk 0:02:59]}  Ng4 {[%clk 0:02:58]} 9. Qe2 {[%clk 0:02:52]}  Bf5 {[%clk 0:02:52]} 10. Ne1 {[%clk 0:02:39]}  Nc6 {[%clk 0:02:46]} 11. h3 {[%clk 0:02:21]}  Nf2 {[%clk 0:02:36]} 12. g4 {[%clk 0:02:21]}  Bxd3 {[%clk 0:02:33]} 13. Qxe3 {[%clk 0:02:21]}  Bxf1 {[%clk 0:02:25]} 14. Kxf1 {[%clk 0:02:07]}  Nd1 {[%clk 0:01:57]} 15. Qe2 {[%clk 0:02:06]}  O-O {[%clk 0:01:47]} 16. Nd2 {[%clk 0:02:05]}  Nxc3 {[%clk 0:01:44]} 17. bxc3 {[%clk 0:02:04]}  Bxc3 {[%clk 0:01:45]} 18. Rb1 {[%clk 0:02:04]}  Nd4 {[%clk 0:01:42]} 19. Qd3 {[%clk 0:01:55]}  Bxd2 {[%clk 0:01:39]} 20. Bxd2 {[%clk 0:01:55]}  Ne6 {[%clk 0:01:36]} 21. Rxb7 {[%clk 0:01:19]}  c4 {[%clk 0:01:29]} 22. Qxd8 {[%clk 0:01:11]}  Raxd8 {[%clk 0:01:30]} 23. Be3 {[%clk 0:01:05]}  c3 {[%clk 0:01:17]} 24. Rxa7 {[%clk 0:01:00]}  Rd2 {[%clk 0:01:03]} 25. Rxe7 {[%clk 0:00:45]}  Rxa2 {[%clk 0:00:58]} 26. f5 {[%clk 0:00:39]}  c2 {[%clk 0:00:35]} 27. Bd5 {[%clk 0:00:20]}  Ra1 {[%clk 0:00:24]} 28. Ke2 {[%clk 0:00:17]}  gxf5 {[%clk 0:00:20]} 29. Nxc2 {[%clk 0:00:15]}  Ra5 {[%clk 0:00:17]} 30. gxf5 {[%clk 0:00:14]}  Rxd5 {[%clk 0:00:17]} 31. fxe6 {[%clk 0:00:15]}  fxe6 {[%clk 0:00:18]} 32. Rxe6 {[%clk 0:00:15]}  Rh5 {[%clk 0:00:18]} 33. Nd4 {[%clk 0:00:09]}  Rxh3 {[%clk 0:00:17]} 34. Re7 {[%clk 0:00:08]}  h6 {[%clk 0:00:10]} 35. Ne6 {[%clk 0:00:07]}  Rf7 {[%clk 0:00:11]} 36. Re8+ {[%clk 0:00:07]}  Kh7 {[%clk 0:00:11]} 37. Nf8+ {[%clk 0:00:04]}  Kg7 {[%clk 0:00:11]} 38. Bd4+ {[%clk 0:00:04]}  Rf6 {[%clk 0:00:08]} 39. Nd7 {[%clk 0:00:01]}  Rh2+ {[%clk 0:00:07]} 40. Kd3 {[%clk 0:00:02]}  Rh3+ {[%clk 0:00:07]} 41. Kc4 {[%clk 0:00:02]}  Rh4 {[%clk 0:00:07]} 42. Nxf6 {[%clk 0:00:03]}  Kf7 {[%clk 0:00:06]} 43. Ra8 {[%clk 0:00:03]}  Rh1 {[%clk 0:00:06]} 44. Ra7+ {[%clk 0:00:03]}  Ke6 {[%clk 0:00:07]} 45. Ra6+ {[%clk 0:00:03]}  Kf5 {[%clk 0:00:07]} 46. Kd5 {[%clk 0:00:04]}  h5 {[%clk 0:00:08]} 47. Ne4 {[%clk 0:00:05]}  h4 {[%clk 0:00:08]} 48. Rf6+ {[%clk 0:00:05]}  Kg4 {[%clk 0:00:08]} 49. Nf2+ {[%clk 0:00:05]}  Kg3 {[%clk 0:00:06]} 50. Nxh1+ {[%clk 0:00:06]}  Kh2 {[%clk 0:00:07]} 51. Rh6 {[%clk 0:00:06]}  h3 {[%clk 0:00:08]} 52. Nf2 {[%clk 0:00:06]}  Kg2 {[%clk 0:00:07]} 53. Rxh3 {[%clk 0:00:06]}  Kf1 {[%clk 0:00:08]} 54. Ke4 {[%clk 0:00:06]}  Ke2 {[%clk 0:00:09]} 55. Rg3 {[%clk 0:00:06]}  Kf1 {[%clk 0:00:10]} 56. Ke3 {[%clk 0:00:06]}  Ke1 {[%clk 0:00:10]} 57. Rg1# {[%clk 0:00:07]} 1-0


[Site "https://www.chess.com"]

[Event "Titled Tuesday Blitz May 23 Late 2023"]
[White "Szpar, Milosz"]
[Black "Deviprasath, Sharvesh"]
[WhiteFideId "1184989"]
[BlackFideId "30938228"]
[WhiteElo "2434"]
[BlackElo "2168"]
[Result "0-1"]
[Round "08"]
[TimeControl "180+2"]
[Date "2023.05.23"]
[WhiteClock "0:02:20"]
[BlackClock "0:01:57"]

1. d4 {[%clk 0:03:00]}  Nf6 {[%clk 0:02:55]} 2. Bf4 {[%clk 0:03:01]}  c5 {[%clk 0:02:55]} 3. d5 {[%clk 0:03:01]}  Qb6 {[%clk 0:02:52]} 4. Nc3 {[%clk 0:03:01]}  Qxb2 {[%clk 0:02:52]} 5. Bd2 {[%clk 0:03:01]}  Qb6 {[%clk 0:02:51]} 6. g4 {[%clk 0:03:01]}  h6 {[%clk 0:02:50]} 7. h4 {[%clk 0:03:01]}  d6 {[%clk 0:02:50]} 8. f3 {[%clk 0:03:00]}  e6 {[%clk 0:02:48]} 9. e4 {[%clk 0:03:00]}  exd5 {[%clk 0:02:48]} 10. exd5 {[%clk 0:03:01]}  Be7 {[%clk 0:02:47]} 11. Nh3 {[%clk 0:03:00]}  Nbd7 {[%clk 0:02:43]} 12. g5 {[%clk 0:03:00]}  hxg5 {[%clk 0:02:43]} 13. hxg5 {[%clk 0:03:01]}  Nh5 {[%clk 0:02:40]} 14. Nf4 {[%clk 0:03:02]}  g6 {[%clk 0:02:37]} 15. Nxh5 {[%clk 0:03:02]}  gxh5 {[%clk 0:02:37]} 16. f4 {[%clk 0:03:02]}  a6 {[%clk 0:02:33]} 17. Rxh5 {[%clk 0:03:02]}  Rxh5 {[%clk 0:02:32]} 18. Qxh5 {[%clk 0:03:03]}  Nf8 {[%clk 0:02:33]} 19. Bd3 {[%clk 0:03:02]}  c4 {[%clk 0:02:31]} 20. Bxc4 {[%clk 0:03:00]}  Qg1+ {[%clk 0:02:09]} 21. Bf1 {[%clk 0:02:59]}  Qg3+ {[%clk 0:02:09]} 22. Kd1 {[%clk 0:02:50]}  Bg4+ {[%clk 0:02:09]} 23. Qxg4 {[%clk 0:02:45]}  Qxg4+ {[%clk 0:02:09]} 24. Kc1 {[%clk 0:02:43]}  Ng6 {[%clk 0:02:04]} 25. Be2 {[%clk 0:02:40]}  Qg1+ {[%clk 0:02:03]} 26. Kb2 {[%clk 0:02:40]}  Qd4 {[%clk 0:02:04]} 27. Bd3 {[%clk 0:02:33]}  b5 {[%clk 0:02:00]} 28. Re1 {[%clk 0:02:31]}  b4 {[%clk 0:01:57]} 29. Re4 {[%clk 0:02:27]}  bxc3+ {[%clk 0:01:57]} 30. Bxc3 {[%clk 0:02:27]}  Rb8+ {[%clk 0:01:57]} 31. Kc1 {[%clk 0:02:20]}  Qxc3 {[%clk 0:01:57]} 0-1


[Site "https://www.chess.com"]